[Event "44th Chess Olympiad Open 2022"]
[Site "Chennai"]
[Date "2022.08.07"]
[Round "9.4"]
[White "Dominguez Perez, Leinier"]
[Black "Banikas, Hristos"]
[Result "1/2-1/2"]
[WhiteElo "2754"]
[BlackElo "2598"]
[Annotator "TA"]
[PlyCount "117"]
[EventDate "2022.??.??"]
[TimeControl "60"]

{[%evp 11,117,20,20,27,20,16,57,20,41,23,18,16,49,15,27,6,39,48,52,48,49,44,37,
50,50,52,63,56,65,65,85,64,62,60,60,21,28,40,158,38,91,95,170,59,82,37,33,16,
30,0,70,0,69,-5,0,0,0,0,34,35,37,2,60,50,60,68,80,53,72,0,0,0,83,83,77,73,83,
75,82,71,82,85,106,0,0,0,0,0,0,0,0,0,0,0,0,0,0,0,0,0,0,0,0,0,0,0,0,0]} 1. e4 {
[%emt 0:00:03]} c6 {[%emt 0:00:11]} 2. d4 {[%emt 0:00:08]} d5 {[%emt 0:00:08]}
3. e5 {[%emt 0:00:09]} Bf5 {[%emt 0:00:17]} 4. Nf3 {[%emt 0:00:05]} e6 {
[%emt 0:00:25]} 5. Be2 {[%emt 0:00:05]} Nd7 {[%emt 0:00:55]} 6. O-O {[%emt 0:
00:00]} a6 {[%emt 0:07:05]} 7. a4 {[%emt 0:31:17] B12: Caro-Kann: Advance
Variation.} h6 {[%emt 0:00:30]} 8. a5 {[%emt 0:00:00]} Rc8 {[%emt 0:00:30]} 9.
Nbd2 {[%emt 0:00:00][%cal Yb1d2,Yd2b3,Yb3d4] [#] White is slightly better.} Ne7
$146 {[%emt 0:00:30]} ({Predecessor:} 9... Bh7 10. c4 dxc4 11. Nxc4 Be4 12. Be3
Bd5 13. Rc1 Bxc4 14. Bxc4 Qxa5 15. Qb3 Qb4 {1-0 (31) Zhigalko, S (2572)
-Dvirnyy,D (2488) Chess.com INT 2021}) 10. c3 {[%emt 0:00:00]} c5 {[%emt 1:38:
07]} 11. dxc5 {[%emt 0:00:24]} Nxc5 {[%emt 0:01:12]} 12. Nb3 {[%emt 0:05:45]}
Nc6 {[%emt 0:00:00]} 13. Be3 Nd7 {[%emt 0:05:11]} 14. Nfd4 {[%emt 0:01:06]}
Nxd4 {[%emt 0:00:00]} 15. Nxd4 {[%emt 0:00:17]} (15. Qxd4 Qc7 $11) 15... Bg6 {
[%emt 0:01:23]} (15... Nxe5 $2 16. Nxf5 exf5 17. Re1 $18) 16. f4 {[%emt 0:02:
14][%cal Yd4e6] Strongly threatening Nxe6!} Bc5 {[%emt 0:00:44]} 17. b4 {
[%emt 0:01:39]} Bxd4 {[%emt 0:05:59]} 18. Bxd4 {[%emt 0:00:23]} O-O {[%emt 0:
00:00]} 19. Qd2 Re8 {[%emt 0:04:01]} 20. Qe3 {[%emt 0:03:17]} Nb8 {[%emt 0:04:
44]} 21. Rad1 {[%emt 0:06:15]} Qh4 {[%emt 0:02:16]} 22. g3 {[%emt 0:00:00]} Qh3
{[%emt 0:01:24]} 23. Rf2 {[%emt 0:03:33]} Nc6 {[%emt 0:01:04]} 24. Bc5 {
[%emt 0:01:57]} (24. Bb6 {feels hotter.} Be4 25. Bc5 h5 26. Ra1) 24... Qf5 {
[%emt 0:02:02]} (24... Be4 $14) 25. Bf1 {[%emt 0:01:22] This bishop pair is
nice.} (25. g4 $1 $16 {[%cal Rg4f5]} Qc2 26. Bf3) 25... Bh5 {[%emt 0:02:03]} (
25... Qg4 $14 26. Re1 Be4) 26. Re1 $16 {[%emt 0:00:30]} Qh7 {[%emt 0:00:56]} (
26... Bg6 $16 {keeps fighting.}) 27. Rb2 {[%emt 0:00:59]} (27. Bd6 $1 $18)
27... Bg6 {[%emt 0:00:00]} 28. Ra1 {White is more active.} Be4 {[%emt 0:01:05]}
29. b5 {[%emt 0:00:48]} axb5 {[%emt 0:00:11]} 30. Rxb5 {[%emt 0:31:10]} (30.
Bxb5 Qf5 $16) 30... g5 {[%emt 0:00:00]} (30... Qg6 $11) 31. Ra2 {[%emt 0:06:42]
} (31. fxg5 $14 Nxe5 32. Be2 (32. gxh6 Nf3+ 33. Kf2 Qf5 $11)) 31... Qg7 {
[%emt 0:00:00]} (31... Qf5 $11) 32. Bd4 {[%emt 0:01:10]} (32. fxg5 $14 Qxg5 33.
Qxg5+ (33. Rxb7 Qxe3+ 34. Bxe3 Nxe5 $16) 33... hxg5 34. Rxb7) 32... gxf4 {
[%emt 0:00:00]} 33. Qxf4 {[%emt 0:00:01]} Nxd4 {[%emt 0:00:00]} 34. cxd4 {
[%emt 0:00:02]} Re7 {[%emt 0:00:00]} 35. Rab2 {[%emt 0:01:24]} Rcc7 {[%emt 0:
00:00]} 36. Kf2 {[%emt 0:00:54]} Qg5 {[%emt 0:00:00]} ({Better is} 36... Qg6
$11) 37. h4 $14 {[%emt 0:01:33]} Qxf4+ {[%emt 0:00:00]} 38. gxf4 {[%emt 0:00:
00]} Kg7 {[%emt 0:00:00]} 39. Be2 {[%emt 0:00:56]} Kg6 {[%emt 0:00:00] [#]} 40.
R2b3 {[%emt 0:01:06]} ({White should play} 40. Rc5 $1 $16) 40... Rc2 $11 {
[%emt 0:00:00]} 41. h5+ {[%emt 0:03:46]} (41. Rxb7 $2 Rxb7 42. Rxb7 Bd3 43. h5+
Kg7 $19) 41... Kg7 {[%emt 0:00:00]} (41... Kf5 $11 42. Ke3 (42. Rxb7 Rxb7 43.
Rxb7 Bd3 $17) 42... Ra2) 42. Ke3 $16 {[%emt 0:07:44]} (42. Rxb7 $2 Rxb7 43.
Rxb7 Bd3 $19) 42... Ra2 {[%emt 0:00:00]} 43. Bd3 {[%emt 0:00:44]} ({Don't play
} 43. Rxb7 Rxb7 44. Rxb7 Rxa5 $11) 43... Bxd3 {[%emt 0:00:00]} 44. Kxd3 {
[%emt 0:00:04] Endgame KRR-KRR} Rd7 {[%emt 0:00:00]} 45. Ke3 {[%emt 0:00:01]} (
{Reject} 45. Rxb7 Rxb7 46. Rxb7 Rxa5 $11) 45... Kf8 {[%emt 0:00:00]} 46. f5 {
[%emt 0:01:33]} ({Much weaker is} 46. Rxb7 Rxb7 47. Rxb7 Rxa5 $11) 46... exf5 {
[%emt 0:00:00] [#]} 47. Rxb7 {[%emt 0:00:03]} (47. Rb6 $1 $16) 47... Rxb7 $11 {
[%emt 0:00:00] The position is equal.} 48. Rxb7 {[%emt 0:00:02]} Rxa5 $16 {
[%emt 0:00:00] KR-KR} 49. Rd7 {[%emt 0:00:05]} Ra3+ {[%emt 0:00:00]} 50. Kf4 {
[%emt 0:00:16]} Rh3 {[%emt 0:00:00]} 51. Rxd5 {[%emt 0:05:03]} Rxh5 {[%emt 0:
00:00]} 52. Rd6 {[%emt 0:00:06]} Ke7 {[%emt 0:00:00]} 53. d5 {[%emt 0:00:00]}
Rh4+ {[%emt 0:00:00]} 54. Kxf5 {[%emt 0:00:04]} Rd4 {[%emt 0:00:00]} 55. Rxh6 {
[%emt 0:00:44] Black must now prevent d6+.} Rxd5 {[%emt 0:00:00]} 56. Rd6 {
[%emt 0:00:04]} Rxd6 {[%emt 0:00:00]} 57. exd6+ {[%emt 0:00:05]} Kxd6 {[%emt 0:
00:00]} 58. Kf6 {[%emt 0:00:02]} Kd5 {[%emt 0:00:00]} 59. Kxf7 {[%emt 0:00:04]
Weighted Error Value: White=0.21 (precise) /Black=0.22 (precise)} 1/2-1/2

[Event "44th Chess Olympiad Open 2022"]
[Site "Chennai"]
[Date "2022.08.07"]
[Round "9.4"]
[White "Mastrovasilis, Dimitrios"]
[Black "Caruana, Fabiano"]
[Result "0-1"]
[WhiteElo "2599"]
[BlackElo "2783"]
[Annotator "TA"]
[PlyCount "74"]
[EventDate "2022.??.??"]
[TimeControl "60"]

{[%evp 24,74,41,39,42,48,48,47,40,56,49,43,85,41,42,45,45,0,0,-19,-32,-75,-93,
-120,-112,-672,-661,-902,-901,-888,-873,-840,-833,-933,-898,-925,-926,-854,
-856,-863,-829,-1355,-1338,-1327,-1315,-1278,-1377,-1352,-1342,-1320,-1314,
-1242,-1235]} 1. e4 {[%emt 0:00:06]} c5 {[%emt 0:00:07]} 2. Nf3 {[%emt 0:00:09]
} Nc6 {[%emt 0:00:05]} 3. d4 {[%emt 0:00:15]} cxd4 {[%emt 0:00:04]} 4. Nxd4 {
[%emt 0:00:08]} Nf6 {[%emt 0:00:05]} 5. Nc3 {[%emt 0:00:09]} e5 {[%emt 0:00:07]
} 6. Ndb5 {[%emt 0:00:15]} d6 {[%emt 0:00:03]} 7. Bg5 {[%emt 0:00:16]} a6 {
[%emt 0:00:05]} 8. Na3 {[%emt 0:00:11]} b5 {[%emt 0:00:06]} 9. Bxf6 {[%emt 0:
00:00]} gxf6 {[%emt 0:00:09]} 10. Nd5 {[%emt 0:00:10]} f5 {[%emt 0:00:41]} 11.
Bd3 {[%emt 0:01:08]} Be6 {[%emt 0:00:36]} 12. O-O {[%emt 0:05:00]} Bg7 {
[%emt 0:15:31]} 13. Qh5 {[%emt 0:09:56]} Rb8 {[%emt 0:00:00] B33: Sicilian:
Pelikan and Sveshnikov Variations.} 14. c3 f4 {[%emt 0:09:02]} 15. Nc2 {
[%emt 0:10:55]} O-O {[%emt 0:00:00] White is slightly better.} 16. Ncb4 {
[%emt 0:01:52]} Nxb4 {[%emt 0:00:00]} 17. Nxb4 {[%emt 0:00:11]} Qb6 {[%emt 0:
00:00] [#] Inhibits Nc6.} 18. Rad1 $146 {[%emt 0:02:44]} ({Predecessor:} 18.
Rfd1 Kh8 19. h3 Rg8 20. a4 Bf6 21. Nd5 Bxd5 22. exd5 Rg7 23. axb5 axb5 24. Be4
{½-½ (59) Kurgansky,V (2410)-Timko,V (2434) ICCF email 2010}) 18... a5 {
[%emt 0:00:00]} 19. Nd5 {[%emt 0:05:45]} Qd8 {[%emt 0:02:54]} 20. Bc2 {[%emt 0:
00:00]} Kh8 {[%emt 0:24:58]} 21. Rd2 {[%emt 0:04:24]} Rg8 $1 {[%emt 0:00:00]
[%cal Yg7h6]} 22. Rfd1 {[%emt 0:24:00] [#]} Bh6 $1 {[%emt 0:14:58]} 23. h3 {
[%emt 0:08:06]} (23. Kh1 Rg6) 23... Rg6 {[%emt 0:11:17]} 24. Qf3 $2 {[%emt 0:
00:00] Loses the game.} (24. Kf1 $17) 24... Qh4 $19 {[%emt 0:04:30] Black is
clearly winning.} 25. Kf1 {[%emt 0:02:45] [#]} Rxg2 $3 {[%emt 0:02:52]} 26.
Kxg2 {[%emt 0:01:07]} Rg8+ {[%emt 0:00:00]} 27. Kf1 {[%emt 0:00:00]} Bxh3+ {
[%emt 0:00:00]} 28. Ke1 {[%emt 0:01:34]} Bg2 {[%emt 0:00:00] This bishop pair
is nice.} 29. Rd3 {[%emt 0:00:40]} Bxf3 {[%emt 0:00:00]} 30. Rxf3 {[%emt 0:03:
07]} Rg2 {[%emt 0:00:00] aiming for ...Qg4.} 31. Ke2 {[%emt 0:00:00]} Bg5 {
[%emt 0:03:32] White must now prevent ...Qg4.} 32. Rf1 {[%emt 0:00:00]} Qg4 {
[%emt 0:00:00]} 33. Bd1 {[%emt 0:02:03]} f5 {[%emt 0:00:00]} 34. Bc2 {[%emt 0:
00:19]} Rh2 {[%emt 0:00:50] And now ...Rh3 would win.} 35. exf5 {[%emt 0:00:57]
} Rh3 {[%emt 0:00:00]} 36. Be4 {[%emt 0:00:12]} Rxf3 {[%emt 0:00:00]} 37. Bxf3
{[%emt 0:00:06]} Qxf5 {[%emt 0:00:00] Weighted Error Value: White=0.87/Black=0.
02 (flawless)} 0-1

[Event "44th Chess Olympiad Open 2022"]
[Site "Chennai"]
[Date "2022.08.07"]
[Round "9.4"]
[White "Mastrovasilis, Athanasios"]
[Black "So, Wesley"]
[Result "0-1"]
[WhiteElo "2527"]
[BlackElo "2773"]
[Annotator "TA"]
[PlyCount "108"]
[EventDate "2022.??.??"]
[TimeControl "60"]

{[%evp 20,108,-12,-29,4,15,17,22,24,0,6,-22,0,0,0,0,0,-8,-12,-10,-10,-14,-10,
-11,-10,-20,-3,-60,-54,-70,-60,-97,-97,-97,-97,-97,-97,-97,-81,-81,-81,-81,-81,
-81,-81,-110,-110,-131,-113,-161,-161,-145,-145,-265,-161,-204,-156,-175,-162,
-144,-145,-280,-265,-1357,-1357,-1179,-1210,-1439,-1349,-1029,-828,-4706,-2284,
-29973,-29974,-29974,-29974,-29975,-29976,-29976,-29977,-29977,-29978,-29978,
-29979,-29979,-29980,-29980,-29981,-29981,-29982]} 1. d4 {[%emt 0:00:41]} Nf6 {
[%emt 0:00:08]} 2. c4 {[%emt 0:00:10]} e6 {[%emt 0:00:09]} 3. Nc3 {[%emt 0:00:
00]} Bb4 {[%emt 0:00:05]} 4. e3 {[%emt 0:00:20]} O-O {[%emt 0:00:06]} 5. Bd3 {
[%emt 0:00:14]} d5 {[%emt 0:00:03]} 6. Nge2 {[%emt 0:00:35]} dxc4 {[%emt 0:00:
00]} 7. Bxc4 {[%emt 0:00:06]} c5 {[%emt 0:00:03]} 8. O-O {[%emt 0:00:40]} cxd4
{[%emt 0:00:39]} 9. exd4 {[%emt 0:00:08]} Nc6 {[%emt 0:00:21]} 10. a3 {[%emt 0:
00:00]} Bxc3 {[%emt 0:08:35]} 11. bxc3 {[%emt 0:00:29]} h6 {[%emt 0:05:43] E48:
Nimzo-Indian: Rubinstein: 5 Bd3 d5 including 6 Ne2, but excluding 6 a3.} 12.
Qd3 {[%emt 0:06:22]} Na5 {[%emt 0:04:18]} 13. Ba2 {[%emt 0:04:50]} b6 {[%emt 0:
00:00] [#] The position is equal.} 14. Re1 $146 {[%emt 0:06:13]} ({Predecessor:
} 14. Bf4 Bb7 15. Ng3 Rc8 16. Rac1 Nd5 17. Bd2 Ne7 {½-½ (17) Farago,I-Savon,
V Cienfuegos 1973}) 14... Bb7 {[%emt 0:08:14]} 15. Nf4 {[%emt 0:07:06]} Re8 {
[%emt 0:06:58]} 16. Bd2 {[%emt 0:10:07]} Qd6 {[%emt 0:00:00]} 17. c4 {[%emt 0:
00:00]} Ba6 {[%emt 0:13:50]} 18. d5 {[%emt 0:05:37]} exd5 {[%emt 0:05:13]} 19.
Nxd5 {[%emt 0:04:30][%cal Yd5e7] And now Ne7+! would win.} Rxe1+ {[%emt 0:00:
00]} 20. Rxe1 {[%emt 0:03:35] [#] Hoping for Ne7+.} Qxd5 {[%emt 0:00:14]} 21.
Qxd5 {[%emt 0:00:25]} Nxd5 {[%emt 0:00:03][%cal Yf6d5,Yd5f4,Yf4d3]} 22. Bxa5 {
[%emt 0:12:41]} Nf4 {[%emt 0:00:25]} 23. Bb4 {[%emt 0:02:54]} (23. Bd2 $1 $11
Nd3 24. Re7) 23... Rc8 $15 {[%emt 0:07:35]} 24. g3 {[%emt 0:00:20]} Nd3 {
[%emt 0:02:25]} 25. Re7 {[%emt 0:06:10]} Bxc4 {[%emt 0:00:00]} 26. Bxc4 {
[%emt 0:00:33]} Rxc4 {[%emt 0:00:00]} 27. Rxa7 {[%emt 0:00:11]} Nxb4 {[%emt 0:
00:00]} 28. axb4 $17 {[%emt 0:01:30] Endgame KR-KR} g5 {[%emt 0:00:00]} 29. b5
{[%emt 0:00:00]} Rb4 {[%emt 0:00:00]} 30. Rb7 {[%emt 0:00:00]} Rxb5 {[%emt 0:
01:49]} 31. Kg2 {[%emt 0:00:11]} Kg7 {[%emt 0:00:00]} 32. Kf3 {[%emt 0:01:28]}
Rb3+ {[%emt 0:02:20]} 33. Ke2 {[%emt 0:05:14]} g4 {[%emt 0:00:00]} 34. Rb8 {
[%emt 0:02:42]} (34. Rd7 $17 {is a better defense.}) 34... h5 $19 {[%emt 0:00:
09]} 35. Rb7 {[%emt 0:07:26]} Rb5 {[%emt 0:03:39]} 36. Kf1 {[%emt 0:12:51]} (
36. Ke3 $17 {might work better.}) 36... Kf6 {[%emt 0:00:26]} 37. Rc7 {[%emt 0:
00:00]} Rc5 {[%emt 0:00:40]} 38. Rb7 {[%emt 0:00:00]} b5 {[%emt 0:19:06] White
must now prevent ...Ke6.} 39. Ke2 {[%emt 0:06:18]} Rf5 {[%emt 0:01:55] Against
f3. ...Ke6 is the strong threat.} 40. Rb6+ {[%emt 0:00:00] [#]} (40. Ke3 $17)
40... Ke7 $1 {[%emt 0:15:50]} 41. f4 $2 {[%emt 0:06:42] [#]} (41. Ke3) 41...
gxf3+ $1 {[%emt 0:00:00]} 42. Kf2 {[%emt 0:00:00]} Kd7 {[%emt 0:00:00]} 43. h3
{[%emt 0:00:00]} Kc7 {[%emt 0:00:00]} 44. Ra6 {[%emt 0:00:00]} b4 {[%emt 0:10:
00][%cal Yb5b4,Yb4b3,Yb3b2] aiming for ...b3.} 45. Ra4 {[%emt 0:00:00]} Rb5 {
[%emt 0:00:00] ( -> ...b3)} 46. Kxf3 {[%emt 0:00:00]} b3 {[%emt 0:00:00] Black
mates.} 47. Ra1 {[%emt 0:00:00]} Kb6 {[%emt 0:00:00]} 48. g4 {[%emt 0:00:00]}
b2 {[%emt 0:00:00]} 49. Rb1 {[%emt 0:00:00]} hxg4+ {[%emt 0:00:00]} 50. Kxg4 {
[%emt 0:00:00]} Ka5 {[%emt 0:00:00]} 51. h4 {[%emt 0:00:00]} Ka4 {[%emt 0:00:
00]} 52. h5 {[%emt 0:00:00]} Kb3 {[%emt 0:00:00]} 53. h6 {[%emt 0:00:00]} Ka2 {
[%emt 0:00:00]} 54. h7 {[%emt 0:00:58]} Rb8 {[%emt 0:00:00] Weighted Error
Value: White=0.68/Black=0.05 (flawless)} 0-1

[Event "44th Chess Olympiad Open 2022"]
[Site "Chennai"]
[Date "2022.08.07"]
[Round "9.5"]
[White "Harikrishna, Pentala"]
[Black "Supi, Luis Paulo"]
[Result "1/2-1/2"]
[WhiteElo "2720"]
[BlackElo "2603"]
[Annotator "TA"]
[PlyCount "153"]
[EventDate "2022.??.??"]
[TimeControl "60"]

{[%evp 13,153,10,43,50,45,36,31,17,47,52,59,62,51,32,31,16,61,49,67,44,49,35,
38,27,41,21,16,18,26,16,22,22,20,31,27,3,25,24,33,26,18,0,0,0,0,0,0,0,0,0,0,0,
0,0,0,0,0,1,2,0,0,0,0,0,0,0,0,0,0,0,0,0,0,0,0,0,0,0,0,0,0,0,0,0,0,0,0,0,0,0,0,
0,0,0,0,0,0,0,0,0,0,0,0,0,0,0,0,0,0,0,0,0,0,0,0,0,0,0,0,0,0,0,0,0,0,0,0,0,0,0,
0,0,0,0,8,8,8,8,8,8,8,8]} 1. d4 {[%emt 0:00:04]} d5 {[%emt 0:00:15]} 2. c4 {
[%emt 0:00:05]} e6 {[%emt 0:00:13]} 3. Nc3 {[%emt 0:00:06]} a6 {[%emt 0:00:06]}
4. cxd5 {[%emt 0:00:11]} exd5 {[%emt 0:00:05]} 5. Bf4 {[%emt 0:02:26]} Nf6 {
[%emt 0:00:27]} 6. e3 {[%emt 0:00:33]} c5 {[%emt 0:00:23]} 7. Nf3 {[%emt 0:00:
00]} Nc6 {[%emt 0:02:03]} 8. Be2 {[%emt 0:00:27] D32: Tarrasch Defence:
Sidelines and lines without g3.} c4 {[%emt 0:06:56] is cutting edge theory.} 9.
O-O {[%emt 0:03:29]} Bb4 {[%emt 0:01:12]} 10. Bg5 {[%emt 0:00:32] [#] White is
slightly better.} Bxc3 $146 {[%emt 0:21:43]} ({Predecessor:} 10... Be6 11. Ne5
Qa5 12. Bxf6 gxf6 13. Nxc6 bxc6 14. Na4 O-O 15. b3 Rab8 16. Qc2 Rfc8 17. bxc4
dxc4 {1-0 (50) Carlsen,M (2855)-Mamedyarov,S (2762) chess24.com INT 2021}) 11.
bxc3 {[%emt 0:00:07][%cal Ye3e4]} h6 {[%emt 0:08:22]} 12. Bxf6 {[%emt 0:00:12]}
Qxf6 {[%emt 0:06:07]} 13. Nd2 {[%emt 0:09:04]} (13. e4 $5 {[%cal Re4d5]}) 13...
O-O {[%emt 0:00:00]} 14. e4 {[%emt 0:26:19]} dxe4 {[%emt 0:00:00]} 15. Nxe4 {
[%emt 0:00:00]} Qg6 {[%emt 0:02:14]} 16. Ng3 {[%emt 0:01:08]} b5 {[%emt 0:00:
00]} 17. Bh5 {[%emt 0:01:01]} Qf6 {[%emt 0:00:35]} 18. Re1 {[%emt 0:10:08]} Rb8
{[%emt 0:10:37]} 19. Qf3 {[%emt 0:10:44]} Qxf3 $1 {[%emt 0:07:13]} 20. Bxf3 {
[%emt 0:00:00]} Nd8 {[%emt 0:00:43]} 21. h4 {[%emt 0:00:29]} Nb7 {[%emt 0:00:
00]} 22. Bxb7 {[%emt 0:05:30]} Rxb7 {[%emt 0:01:33]} 23. a3 {[%emt 0:03:58]}
Rd8 {[%emt 0:01:11]} 24. Ne4 {[%emt 0:00:21]} Kf8 {[%emt 0:01:10]} 25. Nc5 {
[%emt 0:00:35]} Rb8 {[%emt 0:05:49]} 26. Rab1 {[%emt 0:05:22]} a5 {[%emt 0:00:
00]} 27. f3 {[%emt 0:07:45] The position is equal.} b4 {[%emt 0:00:00]} 28.
axb4 {[%emt 0:04:16]} axb4 {[%emt 0:00:00]} 29. Rxb4 {[%emt 0:01:22]} Rxb4 {
[%emt 0:00:00]} 30. cxb4 {[%emt 0:00:06]} Rxd4 $11 {[%emt 0:00:00] Endgame
KRB-KRN} 31. Re4 {[%emt 0:02:56]} Rd1+ {[%emt 0:00:00]} 32. Kf2 {[%emt 0:00:17]
} c3 {[%emt 0:00:00]} 33. Rc4 {[%emt 0:01:51]} Rb1 {[%emt 0:00:00]} 34. Rxc3 {
[%emt 0:00:54]} Rxb4 {[%emt 0:00:00]} 35. Nd3 {[%emt 0:00:15]} Rb8 {[%emt 0:00:
00]} 36. Rc7 {[%emt 0:00:06]} h5 {[%emt 0:01:14]} 37. Kg3 {[%emt 0:01:23]} Be6
{[%emt 0:02:02]} 38. Kf4 {[%emt 0:00:30]} Rd8 {[%emt 0:00:00]} 39. Ke3 {
[%emt 0:01:31]} g6 {[%emt 0:00:54]} 40. Nf4 {[%emt 0:00:44]} Bf5 {[%emt 0:00:
23]} 41. Rc5 {[%emt 0:30:09][%cal Yf4h5]} Bc8 {[%emt 0:31:42]} 42. Ra5 {
[%emt 0:00:34]} Bd7 {[%emt 0:00:48]} 43. Ne2 {[%emt 0:00:00]} Kg7 {[%emt 0:01:
25]} 44. Nd4 {[%emt 0:00:00]} Kf6 {[%emt 0:00:00]} 45. Ra6+ {[%emt 0:00:00]}
Kg7 {[%emt 0:00:00]} 46. Rd6 {[%emt 0:00:00]} Re8+ {[%emt 0:00:00]} 47. Kf4 {
[%emt 0:00:00]} Bc8 {[%emt 0:00:00]} 48. Nb5 {[%emt 0:00:00]} Re2 {[%emt 0:00:
00]} 49. Kg3 {[%emt 0:00:00]} Rb2 {[%emt 0:00:00]} 50. Nc7 {[%emt 0:00:00]} Rc2
{[%emt 0:00:00]} 51. Ne8+ {[%emt 0:00:00]} Kf8 {[%emt 0:00:00]} 52. Nf6 {
[%emt 0:00:00]} Bf5 {[%emt 0:00:00]} 53. Rb6 {[%emt 0:05:17]} Kg7 {[%emt 0:00:
00]} 54. Ne8+ {[%emt 0:00:00]} Kf8 {[%emt 0:00:00]} 55. Nd6 {[%emt 0:00:00]}
Be6 {[%emt 0:00:00]} 56. Ne4 {[%emt 0:00:00]} Kg7 {[%emt 0:00:00]} 57. Rd6 {
[%emt 0:00:00]} Bf5 {[%emt 0:00:00]} 58. Nd2 {[%emt 0:00:00]} Ra2 {[%emt 0:00:
00]} 59. Rd4 {[%emt 0:00:00]} Ra7 {[%emt 0:00:00]} 60. Kf4 {[%emt 0:01:15]} Bd7
{[%emt 0:00:24]} 61. Ne4 {[%emt 0:00:00]} Rc7 {[%emt 0:00:00]} 62. Nd6 {
[%emt 0:00:00]} Ra7 {[%emt 0:00:00]} 63. Rb4 {[%emt 0:00:00]} Ra6 {[%emt 0:00:
02]} 64. Rd4 {[%emt 0:00:00]} Ra7 {[%emt 0:00:19]} 65. g3 {[%emt 0:00:00]} Rc7
{[%emt 0:01:39]} 66. g4 {[%emt 0:00:00]} hxg4 {[%emt 0:00:11]} 67. fxg4 {
[%emt 0:00:00]} Rc1 {[%emt 0:01:39]} 68. g5 {[%emt 0:00:00]} f6 {[%emt 0:00:00]
} 69. gxf6+ {[%emt 0:00:00]} Kxf6 {[%emt 0:00:03]} 70. Ne4+ {[%emt 0:00:00]}
Ke7 {[%emt 0:00:02]} 71. Kg5 {[%emt 0:00:00]} Rg1+ {[%emt 0:01:43]} 72. Kh6 {
[%emt 0:00:00]} Bf5 {[%emt 0:00:10]} 73. Ng5 $1 {[%emt 0:00:00]} Rg4 {[%emt 0:
00:23]} 74. Rxg4 {[%emt 0:00:00]} Bxg4 {[%emt 0:00:02]} 75. Kxg6 {[%emt 0:00:
00]} Bd1 {[%emt 0:00:04]} 76. h5 {[%emt 0:00:00]} Bxh5+ {[%emt 0:00:00]} 77.
Kxh5 {[%emt 0:00:00] Weighted Error Value: White=0.05 (flawless) / Black=0.03 
(flawless)} 1/2-1/2